{"text_format":"3","workbook":"xlsx","n_sheets":1,"sheets":["Blood pressure & glucose"],"not_rendered":{"defined_names":9},"read":"whole","date_system":"1900"}

{"sheet":"Blood pressure & glucose","index":0,"n_rows":13,"n_cols":11,"rows_kept":13,"merged":[[0,1,4,3],[0,4,0,9],[1,4,1,6],[1,7,1,9]]}
[null,"Blood pressure\n& glucose tracker",null,null,"Customize the scale values in cells E2 through J5, below."]
[{"$nulls":4},"BLOOD PRESSURE",null,null,"GLUCOSE SCALE"]
[{"$nulls":4},120,"SYSTOLIC",140,70,100,150]
[{"$nulls":4},80,"DIASTOLIC",90,"LOW","NORMAL","HIGH"]
[{"$nulls":4},"TARGET PRESSURE",null,"CALL PHYSICIAN"]
[null,"Date","Time","Event","Systolic","Diastolic","Heart rate","Glucose","Level","Status","Notes"]
[null,{"$f":"TODAY()","v":"2022-11-10"},"06:00:00","Wake",129,79,72,55,{"$f":"BloodPressureAndGlucose[[#This Row],[Glucose]]","v":55},{"$f":"IFERROR(IF(BloodPressureAndGlucose[[#This Row],[Level]]=0,\"\",IF(BloodPressureAndGlucose[[#This Row],[Level]]<=GLow,\"Low\",IF(AND(BloodPressureAndGlucose[[#This Row],[Level]]>GLow,BloodPressureAndGlucose[[#This Row],[Level]]<GHigh),\"Normal\",\"High\"))), \"\")","v":"Low"}]
[null,{"$f":"TODAY()","v":"2022-11-10"},"07:00:00","Before meal",120,80,74,70,{"$f":"BloodPressureAndGlucose[[#This Row],[Glucose]]","v":70},{"$f":"IFERROR(IF(BloodPressureAndGlucose[[#This Row],[Level]]=0,\"\",IF(BloodPressureAndGlucose[[#This Row],[Level]]<=GLow,\"Low\",IF(AND(BloodPressureAndGlucose[[#This Row],[Level]]>GLow,BloodPressureAndGlucose[[#This Row],[Level]]<GHigh),\"Normal\",\"High\"))), \"\")","v":"Low"}]
[null,"2022-11-10","09:00:00","After meal",133,80,75,75,{"$f":"BloodPressureAndGlucose[[#This Row],[Glucose]]","v":75},{"$f":"IFERROR(IF(BloodPressureAndGlucose[[#This Row],[Level]]=0,\"\",IF(BloodPressureAndGlucose[[#This Row],[Level]]<=GLow,\"Low\",IF(AND(BloodPressureAndGlucose[[#This Row],[Level]]>GLow,BloodPressureAndGlucose[[#This Row],[Level]]<GHigh),\"Normal\",\"High\"))), \"\")","v":"Normal"}]
[null,"2022-11-10","10:00:00","BP only",143,91,75,190,{"$f":"BloodPressureAndGlucose[[#This Row],[Glucose]]","v":190},{"$f":"IFERROR(IF(BloodPressureAndGlucose[[#This Row],[Level]]=0,\"\",IF(BloodPressureAndGlucose[[#This Row],[Level]]<=GLow,\"Low\",IF(AND(BloodPressureAndGlucose[[#This Row],[Level]]>GLow,BloodPressureAndGlucose[[#This Row],[Level]]<GHigh),\"Normal\",\"High\"))), \"\")","v":"High"}]
[null,"2022-11-10","12:00:00","Before meal",141,84,70,140,{"$f":"BloodPressureAndGlucose[[#This Row],[Glucose]]","v":140},{"$f":"IFERROR(IF(BloodPressureAndGlucose[[#This Row],[Level]]=0,\"\",IF(BloodPressureAndGlucose[[#This Row],[Level]]<=GLow,\"Low\",IF(AND(BloodPressureAndGlucose[[#This Row],[Level]]>GLow,BloodPressureAndGlucose[[#This Row],[Level]]<GHigh),\"Normal\",\"High\"))), \"\")","v":"Normal"}]
[null,{"$f":"TODAY()","v":"2022-11-10"},"15:00:00","After meal",132,80,68,90,{"$f":"BloodPressureAndGlucose[[#This Row],[Glucose]]","v":90},{"$f":"IFERROR(IF(BloodPressureAndGlucose[[#This Row],[Level]]=0,\"\",IF(BloodPressureAndGlucose[[#This Row],[Level]]<=GLow,\"Low\",IF(AND(BloodPressureAndGlucose[[#This Row],[Level]]>GLow,BloodPressureAndGlucose[[#This Row],[Level]]<GHigh),\"Normal\",\"High\"))), \"\")","v":"Normal"},"Took BP medication with meal"]
[null,"Averages",null,null,{"$f":"SUBTOTAL(101,BloodPressureAndGlucose[Systolic])","v":133},{"$f":"SUBTOTAL(101,BloodPressureAndGlucose[Diastolic])","v":{"v":82.33333333333333,"d":"82"}},{"$f":"SUBTOTAL(101,BloodPressureAndGlucose[Heart rate])","v":{"v":72.33333333333333,"d":"72"}},{"$f":"SUBTOTAL(101,BloodPressureAndGlucose[Glucose])","v":{"v":103.33333333333333,"d":"103"}}]